{"text_format":"1","workbook":"xlsx","n_sheets":5,"sheets":["ALACSONY kockázat - LOW risk","KÖZEPES kockázat - MEDIUM risk","MAGAS kockázat - HIGH risk","Munka1","Munka2"],"not_rendered":{"charts":0,"images":3,"macros":0,"external_links":0,"defined_names":0,"comments":0,"pivot_tables":0},"unopened":[],"bounds":{"document_bytes":16777216,"sheet_cells":100000,"rows_first":2000,"rows_last":500,"rows_between":2000,"halvings":0,"cell_chars":16384,"cell_head_chars":4096},"cells_cut":0,"cells_raw":0,"read":"whole","date_system":"1900"}

{"sheet":"ALACSONY kockázat - LOW risk","index":0,"n_rows":111,"n_cols":13,"rows_kept":111,"cut":false,"hidden":false,"merged":[[1,1,1,9],[11,4,12,4],[11,5,12,5],[7,4,7,5],[7,8,7,9],[4,1,4,2],[7,1,7,2],[8,8,9,9],[10,8,11,9],[8,7,9,7],[10,7,11,7],[13,4,14,4],[13,5,14,5],[15,4,18,4],[15,5,18,5],[18,8,18,9],[16,8,16,9],[12,7,15,7],[12,8,15,9],[17,8,17,9],[109,1,109,8],[110,1,115,4],[110,5,115,8],[92,7,92,8],[22,2,23,2],[22,3,23,3],[91,1,91,8],[21,6,23,6],[21,7,23,7],[21,8,23,8],[70,2,70,9],[65,1,65,9],[73,1,87,1],[21,9,23,9],[21,2,21,3],[21,4,22,5]]}
[]
[null,"BIZTOSÍTÉK ALACSONY KOCKÁZATÚ KATEGÓRIA ESETÉN / COLLATERALS IN CASE LOW RISK CLASSIFICATION"]
[]
[]
[null,"Magyarországon bejegyzett cég / Company registered in Hungary"]
[]
[]
[null,"Díjak / Fees",null,null,"Aukciós biztosíték / Auction security",null,null,"Megjegyzések","Notes"]
[null,"Entry határkeresztező (Ft/kWh/óra/év) / Entry interconnection (HUF/kWh/h/year)",1273.73,null,"Időszak választó  / Period selector","Q1",null,"Magyar székhelyű Rendszerhasználók esetén \"Magyarországon bejegyzett cég\" bepipálása szükséges, mely alapján a szerződéses biztosíték meghatározásánál 27% ÁFA kerül felszámításra a \"Várható Szerződéses biztosítékigény összesen\" sorban.","In case of Hungarian based companies 'Company registered in Hungary' must be chosen, on the basis of what 27% VAT will be blocked in 'Expected Total contractual security demand' row. ",null,null,"Q1",false]
[null,"Entry hazai termelés (Ft/kWh/óra/év) / Entry domestic production (HUF/kWh/h/year)",1273.73,null,"Aukciós biztosíték igény minimum (Ft) / Minimum auction security (HUF)",35000000,null,null,null,null,null,"Q2",1.27]
[null,"Entry tárolói. (Ft/kWh/óra/év) / Entry storage (HUF/kWh/h/year)",127.38,null,"Zárolási szorzó / Financial limit locking multiplier",0.2,null,"Aukciós biztosíték az aukció alatt minden negyedév vonatkozásában az RBP-n, szerződéses biztosíték az IP-n az aukció zárásának napjától kerül zárolásra. ","Auction securtiy is blocked during the auction on RBP with regards for all quarters, contractual security is blocked on IP from the day the auction closes.",null,null,"Q3"]
[null,"Exit   (Ft/kWh/óra/év) / Exit (HUF/kWh/h/year)",1327.27,null,"Szabad fedezet összege (Ft)/ Free Collateral Amount (HUF)",35000000,null,null,null,null,null,"Q4"]
[null,"Kisundorozsma (Ft/kWh/óra/év) / (HUF/kWh/h/year)",1327.27,null,null,null,null,"Az esetleges túljegyzés esetén jelentkező aukciós díj nem szerepel a táblázatban. Kérjük, fokozottan ügyeljenek a megfelelő összegű biztosíték benyújtására!","The auction fee (premium - if any) is not included in the table. Please take extra care to submit the appropriate amount of security!"]
[null,"Csanádpalota (Ft/kWh/óra/év) / (HUF/kWh/h/year)",1327.27,null,"Leköthető kapacitás díja maximum (Ft) / Amount of bookable capacities (HUF)",{"$f":"F12/F11","v":175000000}]
[null,"Keverőkör (Ft/kWh/óra/év) / Blending (HUF/kWh/h/year)",1327.27]
[null,"Forgalmi díj (Ft/MWh) / Volume fee (HUF/MWh)",29.22,null,"Tervezett kapacitáslekötések díja \"C\" és \"D\" oszlopok adatai alapján (Ft) / Fee of planned capacity booking on the basis of column \"C\" and \"D\" (HUF)",{"$f":"J68","v":0}]
[null,"Szagosítás (Ft/l) / Odourisation fee (HUF/l)",9379.41,null,null,null,null,"Sárga hátterű mezők szabadon szerkeszthetők. ","Fields with a yellow background can be edited freely."]
[null,"Rendszerirányítási díj (Ft) / System operation fee (HUF)",null,null,null,null,null,"Biztosítékkokkal kapcsolatos további információk:  ","Further information about collaterals:"]
[null,"Korrekciós szorzó / Correction factor",0.72340000000000004,null,null,null,null,"a honlapunkon.  ","on our website.  "]
[]
[]
[null,null,"KAPACITÁSOK / CAPACITIES",null,"ÉVES / ANNUAL",null,"Éves kapacitásdíj (Ft/év) / \nAnnual capacity fee (HUF/year)","Negyedéves kapacitásdíj (Ft/negyedév) / Quarterly capacity fee (HUF/quarter)","Aukció alatt zárolt összeg (Ft) / Locked amount during auction (HUF)","Szerződéses biztosíték kapacitásra (Ft) "]
[null,null,"Nem megszakítható / Firm","Megszakítható / Interruptible"]
[null,null,null,null,"MWh/év   /   MWh/year","em3/év   /   thousand m3/year"]
[null,"EXIT"]
[null,"Hazai exit / Domestic exit",null,null,null,null,{"$f":"+C26*$C$12","v":0},{"$f":"G26*IF($F$9=\"Q1\",Munka2!$E$5,IF($F$9=\"Q2\",Munka2!$E$6,IF($F$9=\"Q3\",Munka2!$E$7,IF($F$9=\"Q4\",Munka2!$E$8,\"\"))))","v":0},{"$f":"H26*$F$11","v":0},{"$f":"H26/3","v":0}]
[null,"Hazai exit megszakítható / Domestic exit interruptible",null,null,null,null,{"$f":"+D27*$C$12","v":0},{"$f":"G27*IF($F$9=\"Q1\",Munka2!$E$5,IF($F$9=\"Q2\",Munka2!$E$6,IF($F$9=\"Q3\",Munka2!$E$7,IF($F$9=\"Q4\",Munka2!$E$8,\"\"))))","v":0},{"$f":"H27*$F$11","v":0},{"$f":"H27/3","v":0}]
[null,"Drávaszerdahely HU>CR",null,null,null,null,{"$f":"+C28*$C$12","v":0},{"$f":"G28*IF($F$9=\"Q1\",Munka2!$E$5,IF($F$9=\"Q2\",Munka2!$E$6,IF($F$9=\"Q3\",Munka2!$E$7,IF($F$9=\"Q4\",Munka2!$E$8,\"\"))))","v":0},0,0]
[null,"Drávaszerdahely HU>CR megszakítható / interruptible",null,null,null,null,{"$f":"+D29*$C$12","v":0},{"$f":"G29*IF($F$9=\"Q1\",Munka2!$E$5,IF($F$9=\"Q2\",Munka2!$E$6,IF($F$9=\"Q3\",Munka2!$E$7,IF($F$9=\"Q4\",Munka2!$E$8,\"\"))))","v":0},0,0]
[null,"Csanádpalota HU>RO",null,null,null,null,{"$f":"(+C30*$C$14)","v":0},{"$f":"G30*IF($F$9=\"Q1\",Munka2!$E$5,IF($F$9=\"Q2\",Munka2!$E$6,IF($F$9=\"Q3\",Munka2!$E$7,IF($F$9=\"Q4\",Munka2!$E$8,\"\"))))","v":0},0,0]
[null,"Csanádpalota HU>RO megszakítható / interruptible",null,null,null,null,{"$f":"(+D31*$C$14)","v":0},{"$f":"G31*IF($F$9=\"Q1\",Munka2!$E$5,IF($F$9=\"Q2\",Munka2!$E$6,IF($F$9=\"Q3\",Munka2!$E$7,IF($F$9=\"Q4\",Munka2!$E$8,\"\"))))","v":0},0,0]
[null,"VIP Bereg HU>UA",null,null,null,null,{"$f":"+C32*$C$12","v":0},{"$f":"G32*IF($F$9=\"Q1\",Munka2!$E$5,IF($F$9=\"Q2\",Munka2!$E$6,IF($F$9=\"Q3\",Munka2!$E$7,IF($F$9=\"Q4\",Munka2!$E$8,\"\"))))","v":0},0,0]
[null,"VIP Bereg HU>UA megszakítható / interruptible",null,null,null,null,{"$f":"+D33*$C$12","v":0},{"$f":"G33*IF($F$9=\"Q1\",Munka2!$E$5,IF($F$9=\"Q2\",Munka2!$E$6,IF($F$9=\"Q3\",Munka2!$E$7,IF($F$9=\"Q4\",Munka2!$E$8,\"\"))))","v":0},0,0]
[null,"Kiskundorozsma HU>RS",null,null,null,null,{"$f":"+C34*$C$12","v":0},{"$f":"G34*IF($F$9=\"Q1\",Munka2!$E$5,IF($F$9=\"Q2\",Munka2!$E$6,IF($F$9=\"Q3\",Munka2!$E$7,IF($F$9=\"Q4\",Munka2!$E$8,\"\"))))","v":0},0,0]
[null,"Kiskundorozsma HU>RS megszakítható / interruptible",null,null,null,null,{"$f":"+D35*$C$12","v":0},{"$f":"G35*IF($F$9=\"Q1\",Munka2!$E$5,IF($F$9=\"Q2\",Munka2!$E$6,IF($F$9=\"Q3\",Munka2!$E$7,IF($F$9=\"Q4\",Munka2!$E$8,\"\"))))","v":0},0,0]
[null,"Balassagyarmat HU>SK",null,null,null,null,{"$f":"+C36*$C$14","v":0},{"$f":"G36*IF($F$9=\"Q1\",Munka2!$E$5,IF($F$9=\"Q2\",Munka2!$E$6,IF($F$9=\"Q3\",Munka2!$E$7,IF($F$9=\"Q4\",Munka2!$E$8,\"\"))))","v":0},0,0]
[null,"Balassagyarmat HU>SK megszakítható / interruptible",null,null,null,null,{"$f":"+D37*$C$12*(1-0.11238)","v":0},{"$f":"G37*IF($F$9=\"Q1\",Munka2!$E$5,IF($F$9=\"Q2\",Munka2!$E$6,IF($F$9=\"Q3\",Munka2!$E$7,IF($F$9=\"Q4\",Munka2!$E$8,\"\"))))","v":0},0,0]
[null,"Mosonmagyaróvár HU>AT megszakítható / interruptible",null,null,null,null,{"$f":"+D38*$C$14","v":0},{"$f":"G38*IF($F$9=\"Q1\",Munka2!$E$5,IF($F$9=\"Q2\",Munka2!$E$6,IF($F$9=\"Q3\",Munka2!$E$7,IF($F$9=\"Q4\",Munka2!$E$8,\"\"))))","v":0},0,0]
[null,"Tárolói exit / Storage exit"]
[null,"Tárolói exit megszakítható / Storage exit interruptible"]
[null,"Összes Exit / Total Exit",{"$f":"SUM(C26:C40)","v":0},{"$f":"SUM(D26:D40)","v":0},null,null,{"$f":"SUM(G26:G40)","v":0},{"$f":"SUM(H26:H40)","v":0},{"$f":"SUM(I26:I40)","v":0},{"$f":"SUM(J26:J40)","v":0}]
[null,"Keverőköri Exit / Blending Exit",null,null,null,null,{"$f":"C42*C15","v":0},{"$f":"G42*Munka2!$B$5","v":0},{"$f":"H42*F11","v":0},{"$f":"H42/3","v":0}]
[]
[null,"ENTRY"]
[null,"VIP Bereg UA>HU",null,null,null,null,{"$f":"C45*$C$9","v":0},{"$f":"G45*IF($F$9=\"Q1\",Munka2!$E$5,IF($F$9=\"Q2\",Munka2!$E$6,IF($F$9=\"Q3\",Munka2!$E$7,IF($F$9=\"Q4\",Munka2!$E$8,\"\"))))","v":0},{"$f":"H45*$F$11","v":0},{"$f":"H45/3","v":0}]
[null,"VIP Bereg UA>HU megszakítható / interruptible",null,null,null,null,{"$f":"D46*$C$9","v":0},{"$f":"G46*IF($F$9=\"Q1\",Munka2!$E$5,IF($F$9=\"Q2\",Munka2!$E$6,IF($F$9=\"Q3\",Munka2!$E$7,IF($F$9=\"Q4\",Munka2!$E$8,\"\"))))","v":0},{"$f":"H46*$F$11","v":0},{"$f":"H46/3","v":0}]
[null,"Mosonmagyaróvár AT>HU",null,null,null,null,{"$f":"C47*$C$9","v":0},{"$f":"G47*IF($F$9=\"Q1\",Munka2!$E$5,IF($F$9=\"Q2\",Munka2!$E$6,IF($F$9=\"Q3\",Munka2!$E$7,IF($F$9=\"Q4\",Munka2!$E$8,\"\"))))","v":0},0,0]
[null,"Mosonmagyaróvár AT>HU megszakítható / interruptible",null,null,null,null,{"$f":"(D48*$C$9)","v":0},{"$f":"G48*IF($F$9=\"Q1\",Munka2!$E$5,IF($F$9=\"Q2\",Munka2!$E$6,IF($F$9=\"Q3\",Munka2!$E$7,IF($F$9=\"Q4\",Munka2!$E$8,\"\"))))","v":0},0,0]
[null,"Drávaszerdahely CR>HU",null,null,null,null,{"$f":"C49*$C$9","v":0},{"$f":"G49*IF($F$9=\"Q1\",Munka2!$E$5,IF($F$9=\"Q2\",Munka2!$E$6,IF($F$9=\"Q3\",Munka2!$E$7,IF($F$9=\"Q4\",Munka2!$E$8,\"\"))))","v":0},0,0]
[null,"Drávaszerdahely CR>HU megszakítható / interruptible",null,null,null,null,{"$f":"D50*$C$9","v":0},{"$f":"G50*IF($F$9=\"Q1\",Munka2!$E$5,IF($F$9=\"Q2\",Munka2!$E$6,IF($F$9=\"Q3\",Munka2!$E$7,IF($F$9=\"Q4\",Munka2!$E$8,\"\"))))","v":0},0,0]
[null,"Csanádpalota RO>HU",null,null,null,null,{"$f":"C51*$C$9","v":0},{"$f":"G51*IF($F$9=\"Q1\",Munka2!$E$5,IF($F$9=\"Q2\",Munka2!$E$6,IF($F$9=\"Q3\",Munka2!$E$7,IF($F$9=\"Q4\",Munka2!$E$8,\"\"))))","v":0},0,0]
[null,"Csanádpalota RO>HU megszakítható / interruptible",null,null,null,null,{"$f":"(D52*$C$9)*(1-0.01984)","v":0},{"$f":"G52*IF($F$9=\"Q1\",Munka2!$E$5,IF($F$9=\"Q2\",Munka2!$E$6,IF($F$9=\"Q3\",Munka2!$E$7,IF($F$9=\"Q4\",Munka2!$E$8,\"\"))))","v":0},0,0]
[null,"Kiskundorozsma RS>HU",null,null,null,null,{"$f":"C53*$C$9","v":0},{"$f":"G53*IF($F$9=\"Q1\",Munka2!$E$5,IF($F$9=\"Q2\",Munka2!$E$6,IF($F$9=\"Q3\",Munka2!$E$7,IF($F$9=\"Q4\",Munka2!$E$8,\"\"))))","v":0},0,0]
[null,"Kiskundorozsma RS>HU megszakítható / interruptible",null,null,null,null,{"$f":"D54*$C$9","v":0},{"$f":"G54*IF($F$9=\"Q1\",Munka2!$E$5,IF($F$9=\"Q2\",Munka2!$E$6,IF($F$9=\"Q3\",Munka2!$E$7,IF($F$9=\"Q4\",Munka2!$E$8,\"\"))))","v":0},0,0]
[null,"Balassagyarmat SK>HU",null,null,null,null,{"$f":"C55*$C$9","v":0},{"$f":"G55*IF($F$9=\"Q1\",Munka2!$E$5,IF($F$9=\"Q2\",Munka2!$E$6,IF($F$9=\"Q3\",Munka2!$E$7,IF($F$9=\"Q4\",Munka2!$E$8,\"\"))))","v":0},0,0]
[null,"Balassagyarmat SK>HU megszakítható / interruptible",null,null,null,null,{"$f":"D56*$C$9","v":0},{"$f":"G56*IF($F$9=\"Q1\",Munka2!$E$5,IF($F$9=\"Q2\",Munka2!$E$6,IF($F$9=\"Q3\",Munka2!$E$7,IF($F$9=\"Q4\",Munka2!$E$8,\"\"))))","v":0},0,0]
[null,"Összes import / Total import",{"$f":"SUM(C45:C56)","v":0},{"$f":"SUM(D45:D56)","v":0},null,null,{"$f":"SUM(G45:G56)","v":0},{"$f":"SUM(H45:H56)","v":0},{"$f":"SUM(I45:I56)","v":0},{"$f":"SUM(J45:J56)","v":0}]
[null,"Hazai termelés / Domestic production",null,null,null,null,{"$f":"C58*$C$10","v":0},{"$f":"G58*Munka2!$B$5","v":0},{"$f":"H58*$F$11","v":0},{"$f":"H58/3","v":0}]
[null,"Hazai termelés megszakítható / Domestic production interruptible",null,null,null,null,{"$f":"D59*$C$10","v":0},{"$f":"G59*Munka2!$B$5","v":0},{"$f":"H59*$F$11","v":0},{"$f":"H59/3","v":0}]
[null,"Tároló entry összesen / Storage entry",null,null,null,null,{"$f":"C60*$C$11","v":0},{"$f":"G60*Munka2!$B$5","v":0},0,0]
[null,"Tároló összesen megszakítható / Storage entry interruptible",null,null,null,null,{"$f":"D61*$C$11","v":0},{"$f":"G61*Munka2!$B$5","v":0},0,0]
[null,"Összes Entry (hazai+tároló) / Total entry (domestic+storage)",{"$f":"C60+C58+C57","v":0},{"$f":"D61+D59+D57","v":0},null,null,{"$f":"SUM(G58:G61)","v":0},{"$f":"SUM(H58:H61)","v":0},{"$f":"SUM(I58:I61)","v":0},{"$f":"SUM(J58:J61)","v":0}]
[null,"Össes Entry + Összes Exit / Total Entry + Total Exit",{"$f":"C57+C62","v":0},{"$f":"D57+D62","v":0},null,null,{"$f":"G41+G42+G57+G62","v":0},{"$f":"H41+H42+H57+H62","v":0},0,{"$f":"J41+J42+J57+J62","v":0}]
[]
[]
[null,"Szerződéses biztosíték / Contractual security"]
[null,null,null,null,null,null,"Ft/év / HUF/year","Ft/negyedév / HUF/quarter","Ft/hó  /  HUF/month","Nettó összeg / Net amount"]
[null,"Összes kapacitásdíj / Total capacity fee",null,null,null,null,{"$f":"G41+G42+G57+G62","v":0},{"$f":"H62+H57+H42+H41","v":0},{"$f":"H68/3","v":0},{"$f":"J62+J57+J42+J41","v":0}]
[null,"Forgalmi díj / Volume fee",null,null,{"$f":"I107","v":0},null,null,{"$f":"+I107*C16","v":0},{"$f":"H69/3","v":0},{"$f":"I69*2*C19","v":0}]
[null,"Szagosítási díj / Odourization fee ",null,null,null,{"$f":"D107","v":0},{"$f":"E107","v":0},{"$f":"E107/3","v":0},null,{"$f":"H70*2*C19","v":0}]
[null,"Várható Szerződéses biztosítékigény összesen / \nExpected Total contractual security demand",{"$f":"IF(M9=TRUE,(J68+J69+J70)*M10,(J68+J69+J70))","v":0}]
[]
[]
[null,"Szerződéses biztosíték meghatározásának módszertana a 4.d ÁSZF 7.5 pontja alapján"]
[]
[]
[]
[]
[]
[]
[]
[]
[]
[]
[]
[]
[]
[]
[]
[]
[]
[null,"Háttér számítás Forgalmi díj és szagosítási díj számításához / Background calculation to the calculation of Volume fee and Odourisation fee"]
[null,"Szagosítás / Odourisation",null,"Szállított mennyiség / Transported quantity","Díj / Fee",null,"Szagosított mennyiség","Havi szállítási igények (október+1 óra, március-1 óra)"]
[null,"norma / norm","ml/em3   /   \nml/thousand m3","em3/hó  /  \nthousand m3/month","Ft / HUF","m3","kWh","kWh","MWh"]
[null,"október / October",14,{"$f":"F95/1000","v":0},{"$f":"D95*C95*$C$17/1000","v":0},{"$f":"G95/11.16","v":0},{"$f":"IF($F$9=\"Q1\",($C$26+$D$27)*745,0)","v":0},{"$f":"IF($F$9=\"Q1\",($C$41+$D$41)*745,0)","v":0},{"$f":"H95/1000","v":0}]
[null,"november / November",14,0,0,{"$f":"G96/11.16","v":0},{"$f":"IF($F$9=\"Q1\",($C$26+$D$27)*24*30,0)","v":0},{"$f":"IF($F$9=\"Q1\",($C$41+$D$41)*24*30,0)","v":0},{"$f":"H96/1000","v":0}]
[null,"december / December",14,0,0,0,{"$f":"IF($F$9=\"Q1\",($C$26+$D$27)*24*31,0)","v":0},{"$f":"IF($F$9=\"Q1\",($C$41+$D$41)*24*31,0)","v":0},0]
[null,"január / January",14,0,0,0,{"$f":"IF($F$9=\"Q2\",($C$26+$D$27)*24*31,0)","v":0},{"$f":"IF($F$9=\"Q2\",($C$41+$D$41)*24*31,0)","v":0},0]
[null,"február / February",14,0,0,0,{"$f":"IF($F$9=\"Q2\",($C$26+$D$27)*24*29,0)","v":0},{"$f":"IF($F$9=\"Q2\",($C$41+$D$41)*24*29,0)","v":0},0]
[null,"március / March",14,0,0,0,{"$f":"IF($F$9=\"Q2\",($C$26+$D$27)*743,0)","v":0},{"$f":"IF($F$9=\"Q2\",($C$41+$D$41)*743,0)","v":0},0]
[null,"április / April",16.899999999999999,0,0,0,{"$f":"IF($F$9=\"Q3\",($C$26+$D$27)*24*30,0)","v":0},{"$f":"IF($F$9=\"Q3\",($C$41+$D$41)*24*30,0)","v":0},0]
[null,"május / May",16.899999999999999,0,0,0,{"$f":"IF($F$9=\"Q3\",($C$26+$D$27)*24*31,0)","v":0},{"$f":"IF($F$9=\"Q3\",($C$41+$D$41)*24*31,0)","v":0},0]
[null,"június / June",16.899999999999999,0,0,0,{"$f":"IF($F$9=\"Q3\",($C$26+$D$27)*24*30,0)","v":0},{"$f":"IF($F$9=\"Q3\",($C$41+$D$41)*24*30,0)","v":0},0]
[null,"július / July",16.899999999999999,0,0,0,{"$f":"IF($F$9=\"Q4\",($C$26+$D$27)*24*31,0)","v":0},{"$f":"IF($F$9=\"Q4\",($C$41+$D$41)*24*31,0)","v":0},0]
[null,"augusztus / August",16.899999999999999,0,0,0,{"$f":"IF($F$9=\"Q4\",($C$26+$D$27)*24*31,0)","v":0},{"$f":"IF($F$9=\"Q4\",($C$41+$D$41)*24*31,0)","v":0},0]
[null,"szeptember / September",16.899999999999999,0,0,0,{"$f":"IF($F$9=\"Q4\",($C$26+$D$27)*24*30,0)","v":0},{"$f":"IF($F$9=\"Q4\",($C$41+$D$41)*24*30,0)","v":0},0]
[null,"Összesen / Total",null,{"$f":"SUM(D95:D106)","v":0},0,0,0,0,0]
[]
[]
[null,"Jogi nyilatkozat / Disclaimer"]
[null,"Jelen dokumentumban foglalt adatok, információk, számítások kizárólag tájékoztató jellegűek, azok teljességéért, pontosságáért, esetleges módosulásáért az FGSZ Zrt. nem vállal felelősséget, a feltüntetett valamennyi adat, információ, számítás felhasználása kizárólag a rendszerhasználó saját felelősségére történhet. FGSZ Zrt. nem tartozik felelősséggel azokért az esetlegesen bekövetkező károkért, veszteségekért, költségekért, amelyek a jelen dokumentumban foglalt adatok, információk, számítások használatából erednek.",null,null,null,"The data, information and calculations contained in this document are for information purposes only, FGSZ Ltd. does not assume any responsibility for their completeness, accuracy or possible modifications, and the use of all data, information and calculations contained herein is at the sole risk of the network user. FGSZ Ltd. shall not be liable for any damages, losses, costs arising from the use of the data, information, calculations contained in this document."]

{"sheet":"KÖZEPES kockázat - MEDIUM risk","index":1,"n_rows":111,"n_cols":13,"rows_kept":111,"cut":false,"hidden":false,"merged":[[8,7,9,7],[8,8,9,9],[1,1,1,9],[4,1,4,2],[7,1,7,2],[7,4,7,5],[7,8,7,9],[10,7,11,7],[10,8,11,9],[11,4,12,4],[11,5,12,5],[12,7,15,7],[12,8,15,9],[13,4,14,4],[13,5,14,5],[15,4,18,4],[15,5,18,5],[16,8,16,9],[17,8,17,9],[18,8,18,9],[91,1,91,8],[21,9,23,9],[22,2,23,2],[109,1,109,8],[110,1,115,4],[110,5,115,8],[22,3,23,3],[65,1,65,9],[70,2,70,9],[73,1,87,1],[92,7,92,8],[21,2,21,3],[21,4,22,5],[21,6,23,6],[21,7,23,7],[21,8,23,8]]}
[]
[null,"BIZTOSÍTÉK KÖZEPES KOCKÁZATÚ KATEGÓRIA ESETÉN / COLLATERALS IN CASE MEDIUM RISK CLASSIFICATION"]
[]
[]
[null,"Magyarországon bejegyzett cég / Company registered in Hungary"]
[]
[]
[null,"Díjak / Fees",null,null,"Aukciós biztosíték / Auction security",null,null,"Megjegyzések","Notes"]
[null,"Entry határkeresztező (Ft/kWh/óra/év) / Entry interconnection (HUF/kWh/h/year)",1273.73,null,"Időszak választó  / Period selector","Q1",null,"Magyar székhelyű Rendszerhasználók esetén \"Magyarországon bejegyzett cég\" bepipálása szükséges, mely alapján a szerződéses biztosíték meghatározásánál 27% ÁFA kerül felszámításra a \"Várható Szerződéses biztosítékigény összesen\" sorban.","In case of Hungarian based companies 'Company registered in Hungary' must be chosen, on the basis of what 27% VAT will be blocked in 'Expected Total contractual security demand' row. ",null,null,"Q1",false]
[null,"Entry hazai termelés (Ft/kWh/óra/év) / Entry domestic production (HUF/kWh/h/year)",1273.73,null,"Aukciós biztosíték igény minimum (Ft) / Minimum auction security (HUF)",35000000,null,null,null,null,null,"Q2",1.27]
[null,"Entry tárolói. (Ft/kWh/óra/év) / Entry storage (HUF/kWh/h/year)",127.38,null,"Zárolási szorzó / Financial limit locking multiplier",0.33333332999999998,null,"Aukciós biztosíték az aukció alatt minden negyedév vonatkozásában az RBP-n, szerződéses biztosíték az IP-n az aukció zárásának napjától kerül zárolásra. ","Auction securtiy is blocked during the auction on RBP with regards for all quarters, contractual security is blocked on IP from the day the auction closes.",null,null,"Q3"]
[null,"Exit   (Ft/kWh/óra/év) / Exit (HUF/kWh/h/year)",1327.27,null,"Szabad fedezet összege (Ft)/ Free Collateral Amount (HUF)",35000000,null,null,null,null,null,"Q4"]
[null,"Kisundorozsma (Ft/kWh/óra/év) / (HUF/kWh/h/year)",1327.27,null,null,null,null,"Az esetleges túljegyzés esetén jelentkező aukciós díj nem szerepel a táblázatban. Kérjük, fokozottan ügyeljenek a megfelelő összegű biztosíték benyújtására!","The auction fee (premium - if any) is not included in the table. Please take extra care to submit the appropriate amount of security!"]
[null,"Csanádpalota (Ft/kWh/óra/év) / (HUF/kWh/h/year)",1327.27,null,"Leköthető kapacitás díja maximum (Ft) / Amount of bookable capacities (HUF)",{"$f":"F12/F11","v":105000001.05000001}]
[null,"Keverőkör (Ft/kWh/óra/év) / Blending (HUF/kWh/h/year)",1327.27]
[null,"Forgalmi díj (Ft/MWh) / Volume fee (HUF/MWh)",29.22,null,"Tervezett kapacitáslekötések díja \"C\" és \"D\" oszlopok adatai alapján (Ft) / Fee of planned capacity booking on the basis of column \"C\" and \"D\" (HUF)",{"$f":"J68","v":0}]
[null,"Szagosítás (Ft/l) / Odourisation fee (HUF/l)",9379.41,null,null,null,null,"Sárga hátterű mezők szabadon szerkeszthetők. ","Fields with a yellow background can be edited freely."]
[null,"Rendszerirányítási díj (Ft) / System operation fee (HUF)",null,null,null,null,null,"Biztosítékkokkal kapcsolatos további információk:  ","Further information about collaterals:"]
[null,"Korrekciós szorzó / Correction factor",0.72340000000000004,null,null,null,null,"a honlapunkon.  ","on our website.  "]
[]
[]
[null,null,"KAPACITÁSOK / CAPACITIES",null,"ÉVES / ANNUAL",null,"Éves kapacitásdíj (Ft/év) / \nAnnual capacity fee (HUF/year)","Negyedéves kapacitásdíj (Ft/negyedév) / Quarterly capacity fee (HUF/quarter)","Aukció alatt zárolt összeg (Ft) / Locked amount during auction (HUF)","Szerződéses biztosíték kapacitásra (Ft) "]
[null,null,"Nem megszakítható / Firm","Megszakítható / Interruptible"]
[null,null,null,null,"MWh/év   /   MWh/year","em3/év   /   thousand m3/year"]
[null,"EXIT"]
[null,"Hazai exit / Domestic exit",null,null,null,null,{"$f":"+C26*$C$12","v":0},{"$f":"G26*IF($F$9=\"Q1\",Munka2!$E$5,IF($F$9=\"Q2\",Munka2!$E$6,IF($F$9=\"Q3\",Munka2!$E$7,IF($F$9=\"Q4\",Munka2!$E$8,\"\"))))","v":0},{"$f":"H26*$F$11","v":0},{"$f":"H26/3","v":0}]
[null,"Hazai exit megszakítható / Domestic exit interruptible",null,null,null,null,{"$f":"+D27*$C$12","v":0},{"$f":"G27*IF($F$9=\"Q1\",Munka2!$E$5,IF($F$9=\"Q2\",Munka2!$E$6,IF($F$9=\"Q3\",Munka2!$E$7,IF($F$9=\"Q4\",Munka2!$E$8,\"\"))))","v":0},{"$f":"H27*$F$11","v":0},{"$f":"H27/3","v":0}]
[null,"Drávaszerdahely HU>CR",null,null,null,null,{"$f":"+C28*$C$12","v":0},{"$f":"G28*IF($F$9=\"Q1\",Munka2!$E$5,IF($F$9=\"Q2\",Munka2!$E$6,IF($F$9=\"Q3\",Munka2!$E$7,IF($F$9=\"Q4\",Munka2!$E$8,\"\"))))","v":0},0,0]
[null,"Drávaszerdahely HU>CR megszakítható / interruptible",null,null,null,null,{"$f":"+D29*$C$12","v":0},{"$f":"G29*IF($F$9=\"Q1\",Munka2!$E$5,IF($F$9=\"Q2\",Munka2!$E$6,IF($F$9=\"Q3\",Munka2!$E$7,IF($F$9=\"Q4\",Munka2!$E$8,\"\"))))","v":0},0,0]
[null,"Csanádpalota HU>RO",null,null,null,null,{"$f":"(+C30*$C$14)","v":0},{"$f":"G30*IF($F$9=\"Q1\",Munka2!$E$5,IF($F$9=\"Q2\",Munka2!$E$6,IF($F$9=\"Q3\",Munka2!$E$7,IF($F$9=\"Q4\",Munka2!$E$8,\"\"))))","v":0},0,0]
[null,"Csanádpalota HU>RO megszakítható / interruptible",null,null,null,null,{"$f":"(+D31*$C$14)","v":0},{"$f":"G31*IF($F$9=\"Q1\",Munka2!$E$5,IF($F$9=\"Q2\",Munka2!$E$6,IF($F$9=\"Q3\",Munka2!$E$7,IF($F$9=\"Q4\",Munka2!$E$8,\"\"))))","v":0},0,0]
[null,"VIP Bereg HU>UA",null,null,null,null,{"$f":"(+C32*$C$12)","v":0},{"$f":"G32*IF($F$9=\"Q1\",Munka2!$E$5,IF($F$9=\"Q2\",Munka2!$E$6,IF($F$9=\"Q3\",Munka2!$E$7,IF($F$9=\"Q4\",Munka2!$E$8,\"\"))))","v":0},0,0]
[null,"VIP Bereg HU>UA megszakítható / interruptible",null,null,null,null,{"$f":"+D33*$C$12","v":0},{"$f":"G33*IF($F$9=\"Q1\",Munka2!$E$5,IF($F$9=\"Q2\",Munka2!$E$6,IF($F$9=\"Q3\",Munka2!$E$7,IF($F$9=\"Q4\",Munka2!$E$8,\"\"))))","v":0},0,0]
[null,"Kiskundorozsma HU>RS",null,null,null,null,{"$f":"+C34*$C$12","v":0},{"$f":"G34*IF($F$9=\"Q1\",Munka2!$E$5,IF($F$9=\"Q2\",Munka2!$E$6,IF($F$9=\"Q3\",Munka2!$E$7,IF($F$9=\"Q4\",Munka2!$E$8,\"\"))))","v":0},0,0]
[null,"Kiskundorozsma HU>RS megszakítható / interruptible",null,null,null,null,{"$f":"+D35*$C$12","v":0},{"$f":"G35*IF($F$9=\"Q1\",Munka2!$E$5,IF($F$9=\"Q2\",Munka2!$E$6,IF($F$9=\"Q3\",Munka2!$E$7,IF($F$9=\"Q4\",Munka2!$E$8,\"\"))))","v":0},0,0]
[null,"Balassagyarmat HU>SK",null,null,null,null,{"$f":"+C36*$C$14","v":0},{"$f":"G36*IF($F$9=\"Q1\",Munka2!$E$5,IF($F$9=\"Q2\",Munka2!$E$6,IF($F$9=\"Q3\",Munka2!$E$7,IF($F$9=\"Q4\",Munka2!$E$8,\"\"))))","v":0},0,0]
[null,"Balassagyarmat HU>SK megszakítható / interruptible",null,null,null,null,{"$f":"+D37*$C$12*(1-0.11238)","v":0},{"$f":"G37*IF($F$9=\"Q1\",Munka2!$E$5,IF($F$9=\"Q2\",Munka2!$E$6,IF($F$9=\"Q3\",Munka2!$E$7,IF($F$9=\"Q4\",Munka2!$E$8,\"\"))))","v":0},0,0]
[null,"Mosonmagyaróvár HU>AT megszakítható / interruptible",null,null,null,null,{"$f":"+D38*$C$14","v":0},{"$f":"G38*IF($F$9=\"Q1\",Munka2!$E$5,IF($F$9=\"Q2\",Munka2!$E$6,IF($F$9=\"Q3\",Munka2!$E$7,IF($F$9=\"Q4\",Munka2!$E$8,\"\"))))","v":0},0,0]
[null,"Tárolói exit / Storage exit"]
[null,"Tárolói exit megszakítható / Storage exit interruptible"]
[null,"Összes Exit / Total Exit",{"$f":"SUM(C26:C40)","v":0},{"$f":"SUM(D26:D40)","v":0},null,null,{"$f":"SUM(G26:G40)","v":0},{"$f":"SUM(H26:H40)","v":0},{"$f":"SUM(I26:I40)","v":0},{"$f":"SUM(J26:J40)","v":0}]
[null,"Keverőköri Exit / Blending Exit",null,null,null,null,{"$f":"C42*C15","v":0},{"$f":"G42*Munka2!$B$5","v":0},{"$f":"H42*$F$11","v":0},{"$f":"H42/3","v":0}]
[]
[null,"ENTRY"]
[null,"VIP Bereg UA>HU",null,null,null,null,{"$f":"C45*$C$9","v":0},{"$f":"G45*IF($F$9=\"Q1\",Munka2!$E$5,IF($F$9=\"Q2\",Munka2!$E$6,IF($F$9=\"Q3\",Munka2!$E$7,IF($F$9=\"Q4\",Munka2!$E$8,\"\"))))","v":0},{"$f":"H45*$F$11","v":0},{"$f":"H45/3","v":0}]
[null,"VIP Bereg UA>HU megszakítható / interruptible",null,null,null,null,{"$f":"D46*$C$9","v":0},{"$f":"G46*IF($F$9=\"Q1\",Munka2!$E$5,IF($F$9=\"Q2\",Munka2!$E$6,IF($F$9=\"Q3\",Munka2!$E$7,IF($F$9=\"Q4\",Munka2!$E$8,\"\"))))","v":0},{"$f":"H46*$F$11","v":0},{"$f":"H46/3","v":0}]
[null,"Mosonmagyaróvár AT>HU",null,null,null,null,{"$f":"C47*$C$9","v":0},{"$f":"G47*IF($F$9=\"Q1\",Munka2!$E$5,IF($F$9=\"Q2\",Munka2!$E$6,IF($F$9=\"Q3\",Munka2!$E$7,IF($F$9=\"Q4\",Munka2!$E$8,\"\"))))","v":0},0,0]
[null,"Mosonmagyaróvár AT>HU megszakítható / interruptible",null,null,null,null,{"$f":"(D48*$C$9)","v":0},{"$f":"G48*IF($F$9=\"Q1\",Munka2!$E$5,IF($F$9=\"Q2\",Munka2!$E$6,IF($F$9=\"Q3\",Munka2!$E$7,IF($F$9=\"Q4\",Munka2!$E$8,\"\"))))","v":0},0,0]
[null,"Drávaszerdahely CR>HU",null,null,null,null,{"$f":"C49*$C$9","v":0},{"$f":"G49*IF($F$9=\"Q1\",Munka2!$E$5,IF($F$9=\"Q2\",Munka2!$E$6,IF($F$9=\"Q3\",Munka2!$E$7,IF($F$9=\"Q4\",Munka2!$E$8,\"\"))))","v":0},0,0]
[null,"Drávaszerdahely CR>HU megszakítható / interruptible",null,null,null,null,{"$f":"D50*$C$9","v":0},{"$f":"G50*IF($F$9=\"Q1\",Munka2!$E$5,IF($F$9=\"Q2\",Munka2!$E$6,IF($F$9=\"Q3\",Munka2!$E$7,IF($F$9=\"Q4\",Munka2!$E$8,\"\"))))","v":0},0,0]
[null,"Csanádpalota RO>HU",null,null,null,null,{"$f":"C51*$C$9","v":0},{"$f":"G51*IF($F$9=\"Q1\",Munka2!$E$5,IF($F$9=\"Q2\",Munka2!$E$6,IF($F$9=\"Q3\",Munka2!$E$7,IF($F$9=\"Q4\",Munka2!$E$8,\"\"))))","v":0},0,0]
[null,"Csanádpalota RO>HU megszakítható / interruptible",null,null,null,null,{"$f":"(D52*$C$9)*(1-0.01984)","v":0},{"$f":"G52*IF($F$9=\"Q1\",Munka2!$E$5,IF($F$9=\"Q2\",Munka2!$E$6,IF($F$9=\"Q3\",Munka2!$E$7,IF($F$9=\"Q4\",Munka2!$E$8,\"\"))))","v":0},0,0]
[null,"Kiskundorozsma RS>HU",null,null,null,null,{"$f":"C53*$C$9","v":0},{"$f":"G53*IF($F$9=\"Q1\",Munka2!$E$5,IF($F$9=\"Q2\",Munka2!$E$6,IF($F$9=\"Q3\",Munka2!$E$7,IF($F$9=\"Q4\",Munka2!$E$8,\"\"))))","v":0},0,0]
[null,"Kiskundorozsma RS>HU megszakítható / interruptible",null,null,null,null,{"$f":"D54*$C$9","v":0},{"$f":"G54*IF($F$9=\"Q1\",Munka2!$E$5,IF($F$9=\"Q2\",Munka2!$E$6,IF($F$9=\"Q3\",Munka2!$E$7,IF($F$9=\"Q4\",Munka2!$E$8,\"\"))))","v":0},0,0]
[null,"Balassagyarmat SK>HU",null,null,null,null,{"$f":"C55*$C$9","v":0},{"$f":"G55*IF($F$9=\"Q1\",Munka2!$E$5,IF($F$9=\"Q2\",Munka2!$E$6,IF($F$9=\"Q3\",Munka2!$E$7,IF($F$9=\"Q4\",Munka2!$E$8,\"\"))))","v":0},0,0]
[null,"Balassagyarmat SK>HU megszakítható / interruptible",null,null,null,null,{"$f":"D56*$C$9","v":0},{"$f":"G56*IF($F$9=\"Q1\",Munka2!$E$5,IF($F$9=\"Q2\",Munka2!$E$6,IF($F$9=\"Q3\",Munka2!$E$7,IF($F$9=\"Q4\",Munka2!$E$8,\"\"))))","v":0},0,0]
[null,"Összes import / Total import",{"$f":"SUM(C45:C56)","v":0},{"$f":"SUM(D45:D56)","v":0},null,null,{"$f":"SUM(G45:G56)","v":0},{"$f":"SUM(H45:H56)","v":0},{"$f":"SUM(I45:I56)","v":0},{"$f":"SUM(J45:J56)","v":0}]
[null,"Hazai termelés / Domestic production",null,null,null,null,{"$f":"C58*$C$10","v":0},{"$f":"G58*Munka2!$B$5","v":0},0,0]
[null,"Hazai termelés megszakítható / Domestic production interruptible",null,null,null,null,{"$f":"D59*$C$10","v":0},{"$f":"G59*Munka2!$B$5","v":0},0,0]
[null,"Tároló entry összesen / Storage entry",null,null,null,null,{"$f":"C60*$C$11","v":0},{"$f":"G60*Munka2!$B$5","v":0},0,0]
[null,"Tároló összesen megszakítható / Storage entry interruptible",null,null,null,null,{"$f":"D61*$C$11","v":0},{"$f":"G61*Munka2!$B$5","v":0},0,0]
[null,"Összes Entry (hazai+tároló) / Total entry (domestic+storage)",{"$f":"C60+C58+C57","v":0},{"$f":"D61+D59+D57","v":0},null,null,{"$f":"SUM(G58:G61)","v":0},{"$f":"SUM(H58:H61)","v":0},{"$f":"SUM(I58:I61)","v":0},{"$f":"SUM(J58:J61)","v":0}]
[null,"Össes Entry + Összes Exit / Total Entry + Total Exit",{"$f":"C57+C62","v":0},{"$f":"D57+D62","v":0},null,null,{"$f":"G41+G42+G57+G62","v":0},{"$f":"H41+H42+H57+H62","v":0},0,{"$f":"J41+J42+J57+J62","v":0}]
[]
[]
[null,"Szerződéses biztosíték / Contractual security"]
[null,null,null,null,null,null,"Ft/év / HUF/year","Ft/negyedév / HUF/quarter","Ft/hó  /  HUF/month","Nettó összeg / Net amount"]
[null,"Összes kapacitásdíj / Total capacity fee",null,null,null,null,{"$f":"G41+G42+G57+G62","v":0},{"$f":"H62+H57+H42+H41","v":0},{"$f":"I62+I57+I42+I41","v":0},{"$f":"J62+J57+J42+J41","v":0},36192,24128]
[null,"Forgalmi díj / Volume fee",null,null,{"$f":"I107","v":0},null,null,{"$f":"+I107*C16","v":0},{"$f":"H69/3","v":0},{"$f":"I69*2*C19","v":0}]
[null,"Szagosítási díj / Odourization fee ",null,null,null,{"$f":"D107","v":0},{"$f":"E107","v":0},{"$f":"E107/3","v":0},null,{"$f":"H70*2*C19","v":0}]
[null,"Várható Szerződéses biztosítékigény összesen / \nExpected Total contractual security demand",{"$f":"IF(M9=TRUE,(J68+J69+J70)*M10,(J68+J69+J70))","v":0}]
[]
[]
[null,"Szerződéses biztosíték meghatározásának módszertana a 4.d ÁSZF 7.5 pontja alapján"]
[]
[]
[]
[]
[]
[]
[]
[]
[]
[]
[]
[]
[]
[]
[]
[]
[]
[null,"Háttér számítás Forgalmi díj és szagosítási díj számításához / Background calculation to the calculation of Volume fee and Odourisation fee"]
[null,"Szagosítás / Odourisation",null,"Szállított mennyiség / Transported quantity","Díj / Fee",null,"Szagosított mennyiség","Havi szállítási igények (október+1 óra, március-1 óra)"]
[null,"norma / norm","ml/em3   /   \nml/thousand m3","em3/hó  /  \nthousand m3/month","Ft / HUF","m3","kWh","kWh","MWh"]
[null,"október / October",14,{"$f":"F95/1000","v":0},{"$f":"D95*C95*$C$17/1000","v":0},{"$f":"G95/11.16","v":0},{"$f":"IF($F$9=\"Q1\",($C$26+$D$27)*745,0)","v":0},{"$f":"IF($F$9=\"Q1\",($C$41+$D$41)*745,0)","v":0},{"$f":"H95/1000","v":0}]
[null,"november / November",14,0,0,{"$f":"G96/11.16","v":0},{"$f":"IF($F$9=\"Q1\",($C$26+$D$27)*24*30,0)","v":0},{"$f":"IF($F$9=\"Q1\",($C$41+$D$41)*24*30,0)","v":0},{"$f":"H96/1000","v":0}]
[null,"december / December",14,0,0,0,{"$f":"IF($F$9=\"Q1\",($C$26+$D$27)*24*31,0)","v":0},{"$f":"IF($F$9=\"Q1\",($C$41+$D$41)*24*31,0)","v":0},0]
[null,"január / January",14,0,0,0,{"$f":"IF($F$9=\"Q2\",($C$26+$D$27)*24*31,0)","v":0},{"$f":"IF($F$9=\"Q2\",($C$41+$D$41)*24*31,0)","v":0},0]
[null,"február / February",14,0,0,0,{"$f":"IF($F$9=\"Q2\",($C$26+$D$27)*24*29,0)","v":0},{"$f":"IF($F$9=\"Q2\",($C$41+$D$41)*24*29,0)","v":0},0]
[null,"március / March",14,0,0,0,{"$f":"IF($F$9=\"Q2\",($C$26+$D$27)*743,0)","v":0},{"$f":"IF($F$9=\"Q2\",($C$41+$D$41)*743,0)","v":0},0]
[null,"április / April",16.899999999999999,0,0,0,{"$f":"IF($F$9=\"Q3\",($C$26+$D$27)*24*30,0)","v":0},{"$f":"IF($F$9=\"Q3\",($C$41+$D$41)*24*30,0)","v":0},0]
[null,"május / May",16.899999999999999,0,0,0,{"$f":"IF($F$9=\"Q3\",($C$26+$D$27)*24*31,0)","v":0},{"$f":"IF($F$9=\"Q3\",($C$41+$D$41)*24*31,0)","v":0},0]
[null,"június / June",16.899999999999999,0,0,0,{"$f":"IF($F$9=\"Q3\",($C$26+$D$27)*24*30,0)","v":0},{"$f":"IF($F$9=\"Q3\",($C$41+$D$41)*24*30,0)","v":0},0]
[null,"július / July",16.899999999999999,0,0,0,{"$f":"IF($F$9=\"Q4\",($C$26+$D$27)*24*31,0)","v":0},{"$f":"IF($F$9=\"Q4\",($C$41+$D$41)*24*31,0)","v":0},0]
[null,"augusztus / August",16.899999999999999,0,0,0,{"$f":"IF($F$9=\"Q4\",($C$26+$D$27)*24*31,0)","v":0},{"$f":"IF($F$9=\"Q4\",($C$41+$D$41)*24*31,0)","v":0},0]
[null,"szeptember / September",16.899999999999999,0,0,0,{"$f":"IF($F$9=\"Q4\",($C$26+$D$27)*24*30,0)","v":0},{"$f":"IF($F$9=\"Q4\",($C$41+$D$41)*24*30,0)","v":0},0]
[null,"Összesen / Total",null,{"$f":"SUM(D95:D106)","v":0},0,0,0,0,0]
[]
[]
[null,"Jogi nyilatkozat / Disclaimer"]
[null,"Jelen dokumentumban foglalt adatok, információk, számítások kizárólag tájékoztató jellegűek, azok teljességéért, pontosságáért, esetleges módosulásáért az FGSZ Zrt. nem vállal felelősséget, a feltüntetett valamennyi adat, információ, számítás felhasználása kizárólag a rendszerhasználó saját felelősségére történhet. FGSZ Zrt. nem tartozik felelősséggel azokért az esetlegesen bekövetkező károkért, veszteségekért, költségekért, amelyek a jelen dokumentumban foglalt adatok, információk, számítások használatából erednek.",null,null,null,"The data, information and calculations contained in this document are for information purposes only, FGSZ Ltd. does not assume any responsibility for their completeness, accuracy or possible modifications, and the use of all data, information and calculations contained herein is at the sole risk of the network user. FGSZ Ltd. shall not be liable for any damages, losses, costs arising from the use of the data, information, calculations contained in this document."]

{"sheet":"MAGAS kockázat - HIGH risk","index":2,"n_rows":118,"n_cols":13,"rows_kept":118,"cut":false,"hidden":false,"merged":[[8,7,9,7],[8,8,9,9],[1,1,1,9],[4,1,4,2],[7,1,7,2],[7,4,7,5],[7,8,7,9],[10,7,11,7],[10,8,11,9],[11,4,12,4],[11,5,12,5],[12,7,15,7],[12,8,15,9],[13,4,14,4],[13,5,14,5],[15,4,18,4],[15,5,18,5],[16,8,16,9],[17,8,17,9],[18,8,18,9],[21,9,23,9],[22,2,23,2],[22,3,23,3],[65,1,65,9],[70,2,70,9],[21,2,21,3],[21,4,22,5],[21,6,23,6],[21,7,23,7],[21,8,23,8],[80,1,94,1],[116,1,116,8],[117,1,122,4],[117,5,122,8],[99,7,99,8],[98,1,98,8],[73,1,73,8],[74,2,74,5],[75,1,77,1],[75,2,77,5],[75,6,77,6],[75,7,77,7],[75,8,77,8]]}
[]
[null,"BIZTOSÍTÉK KÖZEPES KOCKÁZATÚ KATEGÓRIA ESETÉN / COLLATERALS IN CASE MEDIUM RISK CLASSIFICATION"]
[]
[]
[null,"Magyarországon bejegyzett cég / Company registered in Hungary"]
[]
[]
[null,"Díjak / Fees",null,null,"Aukciós biztosíték / Auction security",null,null,"Megjegyzések","Notes"]
[null,"Entry határkeresztező (Ft/kWh/óra/év) / Entry interconnection (HUF/kWh/h/year)",1273.73,null,"Időszak választó  / Period selector","Q1",null,"Magyar székhelyű Rendszerhasználók esetén \"Magyarországon bejegyzett cég\" bepipálása szükséges, mely alapján a szerződéses biztosíték meghatározásánál 27% ÁFA kerül felszámításra a \"Várható Szerződéses biztosítékigény összesen\" sorban.","In case of Hungarian based companies 'Company registered in Hungary' must be chosen, on the basis of what 27% VAT will be blocked in 'Expected Total contractual security demand' row. ",null,null,"Q1",false]
[null,"Entry hazai termelés (Ft/kWh/óra/év) / Entry domestic production (HUF/kWh/h/year)",1273.73,null,"Aukciós biztosíték igény minimum (Ft) / Minimum auction security (HUF)",35000000,null,null,null,null,null,"Q2",1.27]
[null,"Entry tárolói. (Ft/kWh/óra/év) / Entry storage (HUF/kWh/h/year)",127.38,null,"Zárolási szorzó / Financial limit locking multiplier",1,null,"Aukciós biztosíték az aukció alatt minden negyedév vonatkozásában az RBP-n, szerződéses biztosíték az IP-n az aukció zárásának napjától kerül zárolásra. ","Auction securtiy is blocked during the auction on RBP with regards for all quarters, contractual security is blocked on IP from the day the auction closes.",null,null,"Q3"]
[null,"Exit   (Ft/kWh/óra/év) / Exit (HUF/kWh/h/year)",1327.27,null,"Szabad fedezet összege (Ft)/ Free Collateral Amount (HUF)",35000000,null,null,null,null,null,"Q4"]
[null,"Kisundorozsma (Ft/kWh/óra/év) / (HUF/kWh/h/year)",1327.27,null,null,null,null,"Az esetleges túljegyzés esetén jelentkező aukciós díj nem szerepel a táblázatban. Kérjük, fokozottan ügyeljenek a megfelelő összegű biztosíték benyújtására!","The auction fee (premium - if any) is not included in the table. Please take extra care to submit the appropriate amount of security!"]
[null,"Csanádpalota (Ft/kWh/óra/év) / (HUF/kWh/h/year)",1327.27,null,"Leköthető kapacitás díja maximum (Ft) / Amount of bookable capacities (HUF)",{"$f":"F12/F11","v":35000000}]
[null,"Keverőkör (Ft/kWh/óra/év) / Blending (HUF/kWh/h/year)",1327.27]
[null,"Forgalmi díj (Ft/MWh) / Volume fee (HUF/MWh)",29.22,null,"Tervezett kapacitáslekötések díja \"C\" és \"D\" oszlopok adatai alapján (Ft) / Fee of planned capacity booking on the basis of column \"C\" and \"D\" (HUF)",{"$f":"J68","v":0}]
[null,"Szagosítás (Ft/l) / Odourisation fee (HUF/l)",9379.41,null,null,null,null,"Sárga hátterű mezők szabadon szerkeszthetők. ","Fields with a yellow background can be edited freely."]
[null,"Rendszerirányítási díj (Ft) / System operation fee (HUF)",null,null,null,null,null,"Biztosítékkokkal kapcsolatos további információk:  ","Further information about collaterals:"]
[null,"Korrekciós szorzó / Correction factor",0.72340000000000004,null,null,null,null,"a honlapunkon.  ","on our website.  "]
[]
[]
[null,null,"KAPACITÁSOK / CAPACITIES",null,"ÉVES / ANNUAL",null,"Éves kapacitásdíj (Ft/év) / \nAnnual capacity fee (HUF/year)","Negyedéves kapacitásdíj (Ft/negyedév) / Quarterly capacity fee (HUF/quarter)","Aukció alatt zárolt összeg (Ft) / Locked amount during auction (HUF)","Szerződéses biztosíték kapacitásra (Ft) "]
[null,null,"Nem megszakítható / Firm","Megszakítható / Interruptible"]
[null,null,null,null,"MWh/év   /   MWh/year","em3/év   /   thousand m3/year"]
[null,"EXIT"]
[null,"Hazai exit / Domestic exit",null,null,null,null,{"$f":"+C26*$C$12","v":0},{"$f":"G26*IF($F$9=\"Q1\",Munka2!$E$5,IF($F$9=\"Q2\",Munka2!$E$6,IF($F$9=\"Q3\",Munka2!$E$7,IF($F$9=\"Q4\",Munka2!$E$8,\"\"))))","v":0},{"$f":"H26*$F$11","v":0},{"$f":"H26/3","v":0}]
[null,"Hazai exit megszakítható / Domestic exit interruptible",null,null,null,null,{"$f":"+D27*$C$12","v":0},{"$f":"G27*IF($F$9=\"Q1\",Munka2!$E$5,IF($F$9=\"Q2\",Munka2!$E$6,IF($F$9=\"Q3\",Munka2!$E$7,IF($F$9=\"Q4\",Munka2!$E$8,\"\"))))","v":0},{"$f":"H27*$F$11","v":0},{"$f":"H27/3","v":0}]
[null,"Drávaszerdahely HU>CR",null,null,null,null,{"$f":"+C28*$C$12","v":0},{"$f":"G28*IF($F$9=\"Q1\",Munka2!$E$5,IF($F$9=\"Q2\",Munka2!$E$6,IF($F$9=\"Q3\",Munka2!$E$7,IF($F$9=\"Q4\",Munka2!$E$8,\"\"))))","v":0},0,0]
[null,"Drávaszerdahely HU>CR megszakítható / interruptible",null,null,null,null,{"$f":"+D29*$C$12","v":0},{"$f":"G29*IF($F$9=\"Q1\",Munka2!$E$5,IF($F$9=\"Q2\",Munka2!$E$6,IF($F$9=\"Q3\",Munka2!$E$7,IF($F$9=\"Q4\",Munka2!$E$8,\"\"))))","v":0},0,0]
[null,"Csanádpalota HU>RO",null,null,null,null,{"$f":"(+C30*$C$14)","v":0},{"$f":"G30*IF($F$9=\"Q1\",Munka2!$E$5,IF($F$9=\"Q2\",Munka2!$E$6,IF($F$9=\"Q3\",Munka2!$E$7,IF($F$9=\"Q4\",Munka2!$E$8,\"\"))))","v":0},0,0]
[null,"Csanádpalota HU>RO megszakítható / interruptible",null,null,null,null,{"$f":"(+D31*$C$14)","v":0},{"$f":"G31*IF($F$9=\"Q1\",Munka2!$E$5,IF($F$9=\"Q2\",Munka2!$E$6,IF($F$9=\"Q3\",Munka2!$E$7,IF($F$9=\"Q4\",Munka2!$E$8,\"\"))))","v":0},0,0]
[null,"VIP Bereg HU>UA",null,null,null,null,{"$f":"+C32*$C$12","v":0},{"$f":"G32*IF($F$9=\"Q1\",Munka2!$E$5,IF($F$9=\"Q2\",Munka2!$E$6,IF($F$9=\"Q3\",Munka2!$E$7,IF($F$9=\"Q4\",Munka2!$E$8,\"\"))))","v":0},0,0]
[null,"VIP Bereg HU>UA megszakítható / interruptible",null,null,null,null,{"$f":"+D33*$C$12","v":0},{"$f":"G33*IF($F$9=\"Q1\",Munka2!$E$5,IF($F$9=\"Q2\",Munka2!$E$6,IF($F$9=\"Q3\",Munka2!$E$7,IF($F$9=\"Q4\",Munka2!$E$8,\"\"))))","v":0},0,0]
[null,"Kiskundorozsma HU>RS",null,null,null,null,{"$f":"+C34*$C$12","v":0},{"$f":"G34*IF($F$9=\"Q1\",Munka2!$E$5,IF($F$9=\"Q2\",Munka2!$E$6,IF($F$9=\"Q3\",Munka2!$E$7,IF($F$9=\"Q4\",Munka2!$E$8,\"\"))))","v":0},0,0]
[null,"Kiskundorozsma HU>RS megszakítható / interruptible",null,null,null,null,{"$f":"+D35*$C$12","v":0},{"$f":"G35*IF($F$9=\"Q1\",Munka2!$E$5,IF($F$9=\"Q2\",Munka2!$E$6,IF($F$9=\"Q3\",Munka2!$E$7,IF($F$9=\"Q4\",Munka2!$E$8,\"\"))))","v":0},0,0]
[null,"Balassagyarmat HU>SK",null,null,null,null,{"$f":"+C36*$C$14","v":0},{"$f":"G36*IF($F$9=\"Q1\",Munka2!$E$5,IF($F$9=\"Q2\",Munka2!$E$6,IF($F$9=\"Q3\",Munka2!$E$7,IF($F$9=\"Q4\",Munka2!$E$8,\"\"))))","v":0},0,0]
[null,"Balassagyarmat HU>SK megszakítható / interruptible",null,null,null,null,{"$f":"+D37*$C$12*(1-0.11238)","v":0},{"$f":"G37*IF($F$9=\"Q1\",Munka2!$E$5,IF($F$9=\"Q2\",Munka2!$E$6,IF($F$9=\"Q3\",Munka2!$E$7,IF($F$9=\"Q4\",Munka2!$E$8,\"\"))))","v":0},0,0]
[null,"Mosonmagyaróvár HU>AT megszakítható / interruptible",null,null,null,null,{"$f":"+D38*$C$14","v":0},{"$f":"G38*IF($F$9=\"Q1\",Munka2!$E$5,IF($F$9=\"Q2\",Munka2!$E$6,IF($F$9=\"Q3\",Munka2!$E$7,IF($F$9=\"Q4\",Munka2!$E$8,\"\"))))","v":0},0,0]
[null,"Tárolói exit / Storage exit"]
[null,"Tárolói exit megszakítható / Storage exit interruptible"]
[null,"Összes Exit / Total Exit",{"$f":"SUM(C26:C40)","v":0},{"$f":"SUM(D26:D40)","v":0},null,null,{"$f":"SUM(G26:G40)","v":0},{"$f":"SUM(H26:H40)","v":0},{"$f":"SUM(I26:I40)","v":0},{"$f":"SUM(J26:J40)","v":0}]
[null,"Keverőköri Exit / Blending Exit",null,null,null,null,{"$f":"C42*C15","v":0},{"$f":"G42*Munka2!$B$5","v":0},{"$f":"H42*$F$11","v":0},{"$f":"H42/3","v":0}]
[]
[null,"ENTRY"]
[null,"VIP Bereg UA>HU",null,null,null,null,{"$f":"C45*$C$9","v":0},{"$f":"G45*IF($F$9=\"Q1\",Munka2!$E$5,IF($F$9=\"Q2\",Munka2!$E$6,IF($F$9=\"Q3\",Munka2!$E$7,IF($F$9=\"Q4\",Munka2!$E$8,\"\"))))","v":0},{"$f":"H45*$F$11","v":0},{"$f":"H45/3","v":0}]
[null,"VIP Bereg UA>HU megszakítható / interruptible",null,null,null,null,{"$f":"D46*$C$9","v":0},{"$f":"G46*IF($F$9=\"Q1\",Munka2!$E$5,IF($F$9=\"Q2\",Munka2!$E$6,IF($F$9=\"Q3\",Munka2!$E$7,IF($F$9=\"Q4\",Munka2!$E$8,\"\"))))","v":0},0,0]
[null,"Mosonmagyaróvár AT>HU",null,null,null,null,{"$f":"C47*$C$9","v":0},{"$f":"G47*IF($F$9=\"Q1\",Munka2!$E$5,IF($F$9=\"Q2\",Munka2!$E$6,IF($F$9=\"Q3\",Munka2!$E$7,IF($F$9=\"Q4\",Munka2!$E$8,\"\"))))","v":0},0,0]
[null,"Mosonmagyaróvár AT>HU megszakítható / interruptible",null,null,null,null,{"$f":"(D48*$C$9)","v":0},{"$f":"G48*IF($F$9=\"Q1\",Munka2!$E$5,IF($F$9=\"Q2\",Munka2!$E$6,IF($F$9=\"Q3\",Munka2!$E$7,IF($F$9=\"Q4\",Munka2!$E$8,\"\"))))","v":0},0,0]
[null,"Drávaszerdahely CR>HU",null,null,null,null,{"$f":"C49*$C$9","v":0},{"$f":"G49*IF($F$9=\"Q1\",Munka2!$E$5,IF($F$9=\"Q2\",Munka2!$E$6,IF($F$9=\"Q3\",Munka2!$E$7,IF($F$9=\"Q4\",Munka2!$E$8,\"\"))))","v":0},0,0]
[null,"Drávaszerdahely CR>HU megszakítható / interruptible",null,null,null,null,{"$f":"D50*$C$9","v":0},{"$f":"G50*IF($F$9=\"Q1\",Munka2!$E$5,IF($F$9=\"Q2\",Munka2!$E$6,IF($F$9=\"Q3\",Munka2!$E$7,IF($F$9=\"Q4\",Munka2!$E$8,\"\"))))","v":0},0,0]
[null,"Csanádpalota RO>HU",null,null,null,null,{"$f":"C51*$C$9","v":0},{"$f":"G51*IF($F$9=\"Q1\",Munka2!$E$5,IF($F$9=\"Q2\",Munka2!$E$6,IF($F$9=\"Q3\",Munka2!$E$7,IF($F$9=\"Q4\",Munka2!$E$8,\"\"))))","v":0},0,0]
[null,"Csanádpalota RO>HU megszakítható / interruptible",null,null,null,null,{"$f":"(D52*$C$9)*(1-0.01984)","v":0},{"$f":"G52*IF($F$9=\"Q1\",Munka2!$E$5,IF($F$9=\"Q2\",Munka2!$E$6,IF($F$9=\"Q3\",Munka2!$E$7,IF($F$9=\"Q4\",Munka2!$E$8,\"\"))))","v":0},0,0]
[null,"Kiskundorozsma RS>HU",null,null,null,null,{"$f":"C53*$C$9","v":0},{"$f":"G53*IF($F$9=\"Q1\",Munka2!$E$5,IF($F$9=\"Q2\",Munka2!$E$6,IF($F$9=\"Q3\",Munka2!$E$7,IF($F$9=\"Q4\",Munka2!$E$8,\"\"))))","v":0},0,0]
[null,"Kiskundorozsma RS>HU megszakítható / interruptible",null,null,null,null,{"$f":"D54*$C$9","v":0},{"$f":"G54*IF($F$9=\"Q1\",Munka2!$E$5,IF($F$9=\"Q2\",Munka2!$E$6,IF($F$9=\"Q3\",Munka2!$E$7,IF($F$9=\"Q4\",Munka2!$E$8,\"\"))))","v":0},0,0]
[null,"Balassagyarmat SK>HU",null,null,null,null,{"$f":"C55*$C$9","v":0},{"$f":"G55*IF($F$9=\"Q1\",Munka2!$E$5,IF($F$9=\"Q2\",Munka2!$E$6,IF($F$9=\"Q3\",Munka2!$E$7,IF($F$9=\"Q4\",Munka2!$E$8,\"\"))))","v":0},0,0]
[null,"Balassagyarmat SK>HU megszakítható / interruptible",null,null,null,null,{"$f":"D56*$C$9","v":0},{"$f":"G56*IF($F$9=\"Q1\",Munka2!$E$5,IF($F$9=\"Q2\",Munka2!$E$6,IF($F$9=\"Q3\",Munka2!$E$7,IF($F$9=\"Q4\",Munka2!$E$8,\"\"))))","v":0},0,0]
[null,"Összes import / Total import",{"$f":"SUM(C45:C56)","v":0},{"$f":"SUM(D45:D56)","v":0},null,null,{"$f":"SUM(G45:G56)","v":0},{"$f":"SUM(H45:H56)","v":0},{"$f":"SUM(I45:I56)","v":0},{"$f":"SUM(J45:J56)","v":0}]
[null,"Hazai termelés / Domestic production",null,null,null,null,{"$f":"C58*$C$10","v":0},{"$f":"G58*Munka2!$B$5","v":0},0,0]
[null,"Hazai termelés megszakítható / Domestic production interruptible",null,null,null,null,{"$f":"D59*$C$10","v":0},{"$f":"G59*Munka2!$B$5","v":0},0,0]
[null,"Tároló entry összesen / Storage entry",null,null,null,null,{"$f":"C60*$C$11","v":0},{"$f":"G60*Munka2!$B$5","v":0},0,0]
[null,"Tároló összesen megszakítható / Storage entry interruptible",null,null,null,null,{"$f":"D61*$C$11","v":0},{"$f":"G61*Munka2!$B$5","v":0},0,0]
[null,"Összes Entry (hazai+tároló) / Total entry (domestic+storage)",{"$f":"C60+C58+C57","v":0},{"$f":"D61+D59+D57","v":0},null,null,{"$f":"SUM(G58:G61)","v":0},{"$f":"SUM(H58:H61)","v":0},{"$f":"SUM(I58:I61)","v":0},{"$f":"SUM(J58:J61)","v":0}]
[null,"Össes Entry + Összes Exit / Total Entry + Total Exit",{"$f":"C57+C62","v":0},{"$f":"D57+D62","v":0},null,null,{"$f":"G41+G42+G57+G62","v":0},{"$f":"H41+H42+H57+H62","v":0},0,{"$f":"J41+J42+J57+J62","v":0}]
[]
[]
[null,"Szerződéses biztosíték / Contractual security"]
[null,null,null,null,null,null,"Ft/év / HUF/year","Ft/negyedév / HUF/quarter","Ft/hó  /  HUF/month","Nettó összeg / Net amount"]
[null,"Összes kapacitásdíj / Total capacity fee",null,null,null,null,{"$f":"G41+G42+G57+G62","v":0},{"$f":"H62+H57+H42+H41","v":0},{"$f":"H68/3","v":0},{"$f":"J62+J57+J42+J41","v":0},24128,24128]
[null,"Forgalmi díj / Volume fee",null,null,{"$f":"I114","v":0},null,null,{"$f":"+I114*C16","v":0},{"$f":"H69/3","v":0},{"$f":"I69*2*C19","v":0}]
[null,"Szagosítási díj / Odourization fee ",null,null,null,{"$f":"D114","v":0},{"$f":"E114","v":0},{"$f":"E114/3","v":0},null,{"$f":"H70*2*C19","v":0}]
[null,"Várható Szerződéses biztosítékigény összesen / \nExpected Total contractual security demand",{"$f":"IF(M9=TRUE,(J68+J69+J70)*M10,(J68+J69+J70))","v":0}]
[]
[]
[null,"Kiegészítő biztosíték / Additional security"]
[null,null,null,null,null,null,"Ft/név / HUF/Q","2/3 rész  /  Part 2/3 ","Kiegészítő biztosíték / \nAdditional security"]
[null,"Negyedéves kapacitásdíj és aukciós díj 2/3-ad része /  2/3 of the annual capacity fee and auction fee",null,null,null,null,{"$f":"H63","v":0},{"$f":"G76/3*2","v":0},{"$f":"IF(M9=TRUE,H76*M10,H76)","v":0}]
[]
[]
[]
[]
[null,"Szerződéses biztosíték meghatározásának módszertana a 4.d ÁSZF 7.5 pontja alapján"]
[]
[]
[]
[]
[]
[]
[]
[]
[]
[]
[]
[]
[]
[]
[]
[]
[]
[null,"Háttér számítás Forgalmi díj és szagosítási díj számításához / Background calculation to the calculation of Volume fee and Odourisation fee"]
[null,"Szagosítás / Odourisation",null,"Szállított mennyiség / Transported quantity","Díj / Fee",null,"Szagosított mennyiség","Havi szállítási igények (október+1 óra, március-1 óra)"]
[null,"norma / norm","ml/em3   /   \nml/thousand m3","em3/hó  /  \nthousand m3/month","Ft / HUF","m3","kWh","kWh","MWh"]
[null,"október / October",14,{"$f":"F102/1000","v":0},{"$f":"D102*C102*$C$17/1000","v":0},{"$f":"G102/11.16","v":0},{"$f":"IF($F$9=\"Q1\",($C$26+$D$27)*745,0)","v":0},{"$f":"IF($F$9=\"Q1\",($C$41+$D$41)*745,0)","v":0},{"$f":"H102/1000","v":0}]
[null,"november / November",14,0,0,{"$f":"G103/11.16","v":0},{"$f":"IF($F$9=\"Q1\",($C$26+$D$27)*24*30,0)","v":0},{"$f":"IF($F$9=\"Q1\",($C$41+$D$41)*24*30,0)","v":0},{"$f":"H103/1000","v":0}]
[null,"december / December",14,0,0,0,{"$f":"IF($F$9=\"Q1\",($C$26+$D$27)*24*31,0)","v":0},{"$f":"IF($F$9=\"Q1\",($C$41+$D$41)*24*31,0)","v":0},0]
[null,"január / January",14,0,0,0,{"$f":"IF($F$9=\"Q2\",($C$26+$D$27)*24*31,0)","v":0},{"$f":"IF($F$9=\"Q2\",($C$41+$D$41)*24*31,0)","v":0},0]
[null,"február / February",14,0,0,0,{"$f":"IF($F$9=\"Q2\",($C$26+$D$27)*24*29,0)","v":0},{"$f":"IF($F$9=\"Q2\",($C$41+$D$41)*24*29,0)","v":0},0]
[null,"március / March",14,0,0,0,{"$f":"IF($F$9=\"Q2\",($C$26+$D$27)*743,0)","v":0},{"$f":"IF($F$9=\"Q2\",($C$41+$D$41)*743,0)","v":0},0]
[null,"április / April",16.899999999999999,0,0,0,{"$f":"IF($F$9=\"Q3\",($C$26+$D$27)*24*30,0)","v":0},{"$f":"IF($F$9=\"Q3\",($C$41+$D$41)*24*30,0)","v":0},0]
[null,"május / May",16.899999999999999,0,0,0,{"$f":"IF($F$9=\"Q3\",($C$26+$D$27)*24*31,0)","v":0},{"$f":"IF($F$9=\"Q3\",($C$41+$D$41)*24*31,0)","v":0},0]
[null,"június / June",16.899999999999999,0,0,0,{"$f":"IF($F$9=\"Q3\",($C$26+$D$27)*24*30,0)","v":0},{"$f":"IF($F$9=\"Q3\",($C$41+$D$41)*24*30,0)","v":0},0]
[null,"július / July",16.899999999999999,0,0,0,{"$f":"IF($F$9=\"Q4\",($C$26+$D$27)*24*31,0)","v":0},{"$f":"IF($F$9=\"Q4\",($C$41+$D$41)*24*31,0)","v":0},0]
[null,"augusztus / August",16.899999999999999,0,0,0,{"$f":"IF($F$9=\"Q4\",($C$26+$D$27)*24*31,0)","v":0},{"$f":"IF($F$9=\"Q4\",($C$41+$D$41)*24*31,0)","v":0},0]
[null,"szeptember / September",16.899999999999999,0,0,0,{"$f":"IF($F$9=\"Q4\",($C$26+$D$27)*24*30,0)","v":0},{"$f":"IF($F$9=\"Q4\",($C$41+$D$41)*24*30,0)","v":0},0]
[null,"Összesen / Total",null,{"$f":"SUM(D102:D113)","v":0},0,0,0,0,0]
[]
[]
[null,"Jogi nyilatkozat / Disclaimer"]
[null,"Jelen dokumentumban foglalt adatok, információk, számítások kizárólag tájékoztató jellegűek, azok teljességéért, pontosságáért, esetleges módosulásáért az FGSZ Zrt. nem vállal felelősséget, a feltüntetett valamennyi adat, információ, számítás felhasználása kizárólag a rendszerhasználó saját felelősségére történhet. FGSZ Zrt. nem tartozik felelősséggel azokért az esetlegesen bekövetkező károkért, veszteségekért, költségekért, amelyek a jelen dokumentumban foglalt adatok, információk, számítások használatából erednek.",null,null,null,"The data, information and calculations contained in this document are for information purposes only, FGSZ Ltd. does not assume any responsibility for their completeness, accuracy or possible modifications, and the use of all data, information and calculations contained herein is at the sole risk of the network user. FGSZ Ltd. shall not be liable for any damages, losses, costs arising from the use of the data, information, calculations contained in this document."]

{"sheet":"Munka1","index":3,"n_rows":0,"n_cols":0,"rows_kept":0,"cut":false,"hidden":false,"merged":[]}

{"sheet":"Munka2","index":4,"n_rows":8,"n_cols":5,"rows_kept":8,"cut":false,"hidden":true,"merged":[[0,0,1,1],[0,3,1,4],[2,0,2,1],[2,3,2,4]]}
["Termelői betáplálási, keverőköri kiadási és tárolói betáplálási és kiadási pontok esetén",null,null,"Hazai kiadási és határkeresztező betáplálási és kiadási pontok esetén"]
[]
["Negyedéves kapacitáslekötés",null,null,"Negyedéves kapacitáslekötés"]
["Negyedév"," Szorzók",null,"Negyedév"," Szorzók"]
["Q1 (október-december)","26,75%",null,"Q1 (október-december)",0.3226]
["Q2 (január-március)","26,75%",null,"Q2 (január-március)",0.33660000000000001]
["Q3 (április-június)","26,75%",null,"Q3 (április-június)",0.2046]
["Q4 (július-szeptember)","26,75%",null,"Q4 (július-szeptember)",0.2233]